Cogmind - Beta 14 @@@ ROGUE MODE // 2024.12.26 @ 20:29:02 Player: Changeling Result: Self-destructed Performance ------------- Evolutions (1) 500 Regions Visited (2) 400 Robots Destroyed (31) 155 Value Destroyed (582) 582 Prototype IDs (1) 20 Alien Tech Used (0) 0 Bonus (0) 0 TOTAL SCORE: 1657 Bonus ------- None Cogmind --------- Core Integrity 186/400 Matter 222/450 Energy 100/100 System Corruption 4% Temperature Cool (51) Movement Walking (400) Ox4 Location -9/Materials Parts ------- > --- POWER (1) -------- (None) > --- PROPULSION (3) --- Aluminum Leg Aluminum Leg > --- UTILITY (3) ------ Huge Storage Unit Large Matter Pod Structural Scanner > --- WEAPON (2) ------- Improved Medium Laser Datajack > --- INVENTORY (25) --- Ion Engine Ion Engine Light Treads Cooling System Cooling System High-capacity Storage Unit Medium Matter Pod (84) Targeting Computer ECM Suite ECM Suite Particle Gun Beam Cannon Beam Cannon Beam Cannon Assault Rifle Light Assault Rifle Light Assault Rifle Light Assault Rifle Light Assault Rifle Peak State ------------ > --- POWER ------------ Light Ion Engine > --- PROPULSION ------- Aluminum Leg Aluminum Leg Aluminum Leg > --- UTILITY ---------- Huge Storage Unit Large Matter Pod Structural Scanner > --- WEAPON ----------- Improved Medium Laser > --- INVENTORY -------- Ion Engine Ion Engine Light Treads Cooling System Cooling System High-capacity Storage Unit Medium Matter Pod Targeting Computer ECM Suite ECM Suite Particle Gun Beam Cannon Beam Cannon Beam Cannon Assault Rifle Light Assault Rifle Light Assault Rifle Light Assault Rifle Light Assault Rifle Datajack [Rating: 12] Favorites ----------- Power Ion Engine Engine Ion Engine Propulsion Aluminum Leg Treads Light Treads Leg Aluminum Leg Wheel Wheel Utility Large Matter Pod Device Tractor Beam Storage Large Matter Pod Weapon Light Assault Rifle Energy Gun Improved Medium Laser Ballistic Gun Light Assault Rifle Ballistic Cannon Light Cannon Launcher Grenade Launcher Special Melee Weapon Datajack Build | -11 -10 -9 ------- Run | Yrd Mat Mat Slots Evolved 2 | . . 2 Power . | . . . Propulsion 1 | . . 1 Utility 1 | . . 1 Weapon . | . . . Parts Attached 35 | 6 10 19 Power 3 | 1 2 . Engine 3 | 1 2 . Core . | . . . Reactor . | . . . Propulsion 18 | 2 4 12 Treads 6 | . . 6 Leg 9 | . 3 6 Wheel 3 | 2 1 . Hover . | . . . Flight . | . . . Utility 6 | 1 3 2 Device 2 | . . 2 Storage 4 | 1 3 . Processor . | . . . Hackware . | . . . Protection . | . . . Artifact . | . . . Weapon 8 | 2 1 5 Energy Gun 1 | . . 1 Energy Cannon . | . . . Ballistic Gun 4 | 2 1 1 Ballistic Cannon 1 | . . 1 Launcher 1 | . . 1 Special Weapon . | . . . Impact Weapon . | . . . Slashing Weapon . | . . . Piercing Weapon . | . . . Special Melee Weapon 1 | . . 1 Unidentified Prototypes 1 | . . 1 Parts Lost 8 | . 2 6 Power 2 | . 1 1 Propulsion 2 | . . 2 Utility 1 | . . 1 Weapon 3 | . 1 2 Highest Loss Streak 5 | . 2 5 To Critical Strikes . | . . . Average Slot Usage (%) 98 | . 99 95 Engine 13 | . 14 10 Treads 7 | . . 28 Leg 20 | . 26 3 Wheel 1 | . 1 . Device 2 | . . 9 Storage 26 | . 27 22 Ballistic Gun 21 | . 27 . Ballistic Cannon 2 | . . 9 Launcher 2 | . . 9 Peak Build Rating 12 | 6 9 12 Average Rating 8 | 4 8 10 On Entrance 5 | . 6 9 Naked Turns . | . . . Heaviest Build 93 | 10 90 93 Greatest Support 60 | 26 26 60 Greatest Overweight (x) 4 | . 4 4 Average Overweight (x) 2 | . 2 1 Largest Inventory Capacity 25 | 8 25 25 Average Capacity 22 | 6 22 25 Most Carried 25 | 6 25 24 Average Carried 18 | 3 18 21 Final Capacity 25 | 8 25 25 Final Carried 25 | 6 25 19 Class Distribution -------------------- 100% | Mutant Dominant Class ---------------- Mutant | -10/Materials Mutant | -9/Materials Resources | -11 -10 -9 ----------- Run | Yrd Mat Mat Matter Collected 833 | 238 470 125 Remotely 90 | . . 90 Salvage Created 1053 | . 470 583 Parts 73 | . 36 37 Haulers Intercepted . | . . . Recyclers Shooed 5 | . 3 2 Parts Field Recycled . | . . . Retrieved Matter . | . . . Parts Self-Destructed . | . . . Prevented . | . . . Kills | -11 -10 -9 ------- Run | Yrd Mat Mat Combat Hostiles Destroyed 19 | . 13 6 Guns 16 | . 13 3 Cannons 2 | . . 2 AOE 1 | . . 1 Classes Destroyed 8 | . 4 4 Worker 1 | . 1 . Builder 3 | . . 3 Recycler 7 | . 2 5 Watcher 1 | . . 1 Swarmer 9 | . 9 . Grunt 7 | . 4 3 Duelist 1 | . . 1 Sentry 2 | . . 2 Best Kill Streak 6 | . 4 6 Combat Bots Only 3 | . 3 3 Max Kills in Single Turn 2 | . 2 2 Gunslinging 1 | . 1 . Exploded 1 | . . 1 Melee . | . . . Uniques/NPCs Destroyed . | . . . Combat | -11 -10 -9 -------- Run | Yrd Mat Mat Hostile Shots Fired 166 | . 85 81 Missed 49 | . 26 23 Damage Taken 1723 | . 529 1194 Core 337 | . 123 214 Absorbed by Shields . | . . . Core Remaining (%) 75 | 100 50 . Volleys Fired 107 | . 63 44 Largest 2 | . 2 1 Hottest 56 | . 40 56 Shots Fired 170 | . 126 44 Gun 143 | . 126 17 Cannon 16 | . . 16 Launcher 11 | . . 11 Special . | . . . Kinetic 142 | . 126 16 Thermal 17 | . . 17 Explosive 11 | . . 11 Electromagnetic . | . . . Robot Hit Streak 11 | . 9 11 Robot Miss Streak 5 | . 5 3 Penetration Max . | . . . Secondary Targets 1 | . 1 . Max Gunslinging Chain 1 | . 1 . Shots Hit Robots 87 | . 60 27 Core Hits 51 | . 30 21 Critical Kills . | . . . Critical Parts Destroyed . | . . . Critical Strikes . | . . . Melee Attacks 3 | . . 3 Impact . | . . . Slashing . | . . . Piercing . | . . . Sneak Attacks . | . . . Combat Hostiles . | . . . Follow-up Attacks . | . . . Damage Inflicted 1301 | . 502 799 Guns 707 | . 502 205 Cannons 207 | . . 207 Explosions 387 | . . 387 Melee . | . . . Ramming . | . . . Kinetic 709 | . 502 207 Thermal 268 | . . 268 Explosive 324 | . . 324 Electromagnetic . | . . . Impact . | . . . Slashing . | . . . Piercing . | . . . Highest Corruption 4 | . . 4 Average Corruption 4 | . . 4 Corruption Purged . | . . . Corruption Blocked . | . . . Effects 1 | . . 1 Matter Fused 1 | . . 1 Overload Shots . | . . . Overflow Damage 19 | . . 19 Projectiles . | . . . Explosions 19 | . . 19 Melee . | . . . Knockbacks 1 | . . 1 Impact . | . . . Kinetic 1 | . . 1 Secondary . | . . . Self-Inflicted Damage 20 | . . 20 Shots 2 | . . 2 Rammed . | . . . Targets Rammed . | . . . Kicked . | . . . Crushed . | . . . Highest Temperature 51 | . 30 51 Average Temperature 28 | . 12 38 Received Heat Transfer 399 | . 111 288 Siege Activations . | . . . Robots Corrupted . | . . . Combat Hostiles . | . . . Parts Fried . | . . . Impact Corruptions . | . . . Robots Melted . | . . . Combat Hostiles . | . . . Parts Melted . | . . . Heat Transferred 494 | . . 494 Parts Sabotaged . | . . . Parts Stolen . | . . . Parts Stripped . | . . . Power Chain Reactions . | . . . Alert | -11 -10 -9 ------- Run | Yrd Mat Mat Peak Influence 245 | . 245 191 Initial 80 | . . 80 Average 72 | . 71 82 Maximum Alert Level 1 | . 1 . Low Security (%) 98 | 100 97 100 Level 1 1 | . 2 . Level 2 . | . . . Level 3 . | . . . Level 4 . | . . . Level 5 . | . . . High Security . | . . . Max Security . | . . . Squads Dispatched . | . . . Investigation . | . . . Extermination . | . . . Reinforcement . | . . . Assault . | . . . Garrison . | . . . Intercept . | . . . Searches Triggered . | . . . Construction Impeded . | . . . Haulers Reinforced . | . . . Active Scanning Responses . | . . . Cargo Convoy Interrupts . | . . . Stealth | -11 -10 -9 --------- Run | Yrd Mat Mat Distress Signals 2 | . 1 1 Communications Jammed . | . . . Distress Signals . | . . . Times Spotted 40 | . 28 12 Peak Tracking Total 5 | . 4 5 Tactical Retreats 3 | . 3 . Traps | -11 -10 -9 ------- Run | Yrd Mat Mat Traps Triggered . | . . . Indirectly . | . . . Trap Hack Attempts . | . . . Triggered . | . . . Disarmed . | . . . Reprogrammed . | . . . Reused . | . . . Traps Extracted . | . . . Installed . | . . . Triggered . | . . . Machines | -11 -10 -9 ---------- Run | Yrd Mat Mat Machines Disabled 3 | . . 3 Max in Single Turn 2 | . . 2 Machines Repaired . | . . . Machines Dismantled . | . . . Machines Sabotaged . | . . . Overloaded Fab Kills . | . . . Hacking | -11 -10 -9 --------- Run | Yrd Mat Mat Machines Accessed 3 | . 1 2 Terminals 3 | . 1 2 Fabricators . | . . . Repair Stations . | . . . Recycling Units . | . . . Scanalyzers . | . . . Garrison Access . | . . . Total Hacks 4 | . 1 3 Successful 2 | . . 2 Failed 2 | . 1 1 Catastrophic 1 | . 1 . Database Lockouts . | . . . Manual 2 | . 2 . Terminals 4 | . 1 3 Fabricators . | . . . Repair Stations . | . . . Recycling Units . | . . . Scanalyzers . | . . . Garrison Access . | . . . Terminal Hacks 2 | . . 2 Locate Traps 2 | . . 2 Fabricator Hacks . | . . . Repair Station Hacks . | . . . Recycling Unit Hacks . | . . . Scanalyzer . | . . . Garrison Access Hacks . | . . . Unauthorized Hacks . | . . . Terminals . | . . . Fabricators . | . . . Repair Stations . | . . . Recycling Units . | . . . Scanalyzers . | . . . Garrison Access . | . . . Data Cores Recovered . | . . . Used . | . . . Hacking Detections 3 | . 2 1 Full Trace Events . | . . . Feedback Events . | . . . Feedback Blocked . | . . . Robot Schematics Acquired . | . . . Robots Built . | . . . Authchips . | . . . Time . | . . . Total Robot Build Rating . | . . . Part Schematics Acquired . | . . . Parts Built . | . . . Authchips . | . . . Time . | . . . Total Part Build Rating . | . . . Parts Repaired . | . . . Time . | . . . Parts Recycled . | . . . Recycled Matter . | . . . Retrieved Matter . | . . . Retrieved Components . | . . . Parts Scanalyzed . | . . . Part Schematics Acquired . | . . . Parts Damaged . | . . . Bothacking | -11 -10 -9 ------------ Run | Yrd Mat Mat Used RIF Installer . | . . . Robots Hacked 1 | . . 1 Non-combat . | . . . Combat 1 | . . 1 Robot Hacks Applied 1 | . . 1 parse_system 1 | . . 1 Relay Couplers Released . | . . . Fabnet Peak Effective % . | . . . Robots Rewired . | . . . Allies Hacked . | . . . Hacks Repelled . | . . . Allies | -11 -10 -9 -------- Run | Yrd Mat Mat Total Allies . | . . . Largest Group . | . . . Highest-Rated Group . | . . . Highest-Rated Ally . | . . . Total Orders . | . . . Ally Attacks . | . . . Total Damage . | . . . Kills . | . . . Allies Corrupted . | . . . Allies Melted . | . . . Intel | -11 -10 -9 ------- Run | Yrd Mat Mat Robot Analysis Total . | . . . Derelict Logs Recovered . | . . . Drone Launches . | . . . Drone Recoveries . | . . . Exploration | -11 -10 -9 ------------- Run | Yrd Mat Mat Turns Passed 2669 | 76 1939 654 Spaces Moved 839 | 67 556 216 Core 5 | 5 . . Treads 205 | . . 205 Legs 477 | . 466 11 Wheels 152 | 62 90 . Hover . | . . . Flight . | . . . Fastest Speed 50 | 50 90 240 Average Speed 272 | 87 306 243 Slowest Speed 480 | 90 400 480 Overloaded Moves . | . . . Propulsion Burnouts . | . . . Robots Hopped . | . . . Cave-ins Triggered 1 | . . 1 Exploration Rate (%) 24 | 4 54 16 Regions Visited 2 Branch Regions . Pre-discovered Areas . | . . . Known Exits Taken . | . . . Unknown Exits Taken 2 | 1 1 . Scrap Searched . | . . . Spaces Dug 4 | . . 4 Terrain Destroyed 42 | . . 42 Melee . | . . . Projectile . | . . . AOE 42 | . . 42 Terrain Rammed . | . . . Walls Destroyed . | . . . Machines Disabled . | . . . Actions | -11 -10 -9 --------- Run | Yrd Mat Mat Total 1078 | 84 700 294 Wait 31 | . 26 5 Move 837 | 66 555 216 Hop . | . . . Pick Up 49 | 12 33 4 Fast Attach . | . . . Attach 19 | 6 6 7 Detach 2 | . 2 . Swap 16 | . 4 12 Drop 14 | . 11 3 Fire 107 | . 63 44 Melee 3 | . . 3 Ram . | . . . Kick . | . . . Crush . | . . . Escape Stasis . | . . . Rewire . | . . . Trap . | . . . Miscellaneous . | . . . Route ------- -11/Scrapyard -10/Materials (discovered 2 exits: *Mat / [*Min]) -9/Materials (discovered 1 exit: [*Sto]) History --------- Turn | Location | Event 2 | -11/Scrapyard | Met Revision 17 13 | -11/Scrapyard | Discovered new exit (range 15) 77 | -11/Scrapyard | Entered Materials 316 | -10/Materials | Build established: Mutant 1251 | -10/Materials | Discovered new exit (range 8) 1837 | -10/Materials | Discovered new exit (range 9) 2016 | -10/Materials | Entered another Materials area 2016 | -9/Materials | Evolved 2 slots: Propulsion x1, Utility x1 2088 | -9/Materials | Discovered new exit (range 16) 2638 | -9/Materials | Crushed by falling debris 2641 | -9/Materials | Core integrity fell below 50% 2669 | -9/Materials | Lost 5 parts (1p2n2w) 2670 | -9/Materials | Self-destructed Last Messages --------------- 02660_ K-01 Serf collects debris. 02660_ U-05 Engineer lays Concrete. 02660_ R-06 Scavenger collects Ion Engine. 02660_ U-05 Engineer lays Concrete. 02661_ U-05 Engineer builds a Wall. 02662_ U-05 Engineer lays Concrete. 02662_ R-06 Scavenger collects Sml. Laser. 02662_ R-06 Scavenger destroyed. 02662_ K-01 Serf collects debris. 02664_ U-05 Engineer lays Concrete. 02664_ R-06 Scavenger destroyed. 02665_ U-05 Engineer lays Concrete. 02665_ K-01 Serf collects debris. 02665_ U-05 Engineer builds a Wall. 02666_ K-01 Serf collects debris. 02666_ R-06 Scavenger collects Heat Sink. 02666_ U-05 Engineer lays Concrete. 02669_ K-01 Serf collects debris. 02669_ U-05 Engineer lays Concrete. 02670_ K-01 Serf collects debris. Map ----- +----------------------------------------------------+ | #????????????????????????????????????????????????? | | #????????????????????????????????????????????????? | | ###############??????????????????????????????????? | | ## ???????????????????????????????????? | | ## ???????????????????????????????????? | | ^ ????????????????????????????????????? | | ^ ????????? ?????????????????????????? | | """ ????????? ????????????????????????? | | "R" #???????????## ???????????????????????? | | " " #???????????## ##???????????????????????? | | #???????????## # ???????????????????????? | | #???????????## # ???????????????????????? | | #???????????## # ???????????????????????? | | ####+#####?????????## # ???????????????????????? | | #?????????## + ???????????????????????? | | #?????????## # ???????????????????????? | | """ #?????????## # ???????????????????????? | | """ #?####????## # ?? #########?????????? | | """ ############ ################?????????? | | !!# ## ##### ## # ####???????? | | # !!! # ########### ####???????? | | + !!! # !%= ???????? | | ########## !!! + [* =[ ???????? | | ????????## # [ !% == ???????? | | ????????## # #k%=[%! ## ###?????????? | | ?????????# ######@%=%k! # ##?????????? | | ?????????# ###### !! # ####?????????? | | ?????????###########???##; *%= uu# ####?????????? | | ???????????????????????### a ;###???????????? | | ???????????????????????### a;###???????????? | | ????????????????????????## "##????????????? | | ????????????????????????## r T##????????????? | | ????????????????????????## "##????????????? | | ?????????????????????????? "Y" ###????????????? | | ?????????????????????????? """ # ????????????? | | ?????????????????????????? ? # ?????????????? | | ?????????????????????????# ? + ?????????????? | | ?????????????????????????##+### ? # ?????????????? | | ????????????????????????? ## ?????????????????? | | ???????????????????????????? ????????????????????? | | ?????????????????????????????????????????????????? | | ?????????????????????????????????????????????????? | | ?????????????????????????????????????????????????? | | ?????????????????????????????????????????????????? | | ?????????????????????????????????????????????????? | | ?????????????????????????????????????????????????? | | ?????????????????????????????????????????????????? | | ?????????????????????????????????????????????????? | | ?????????????????????????????????????????????????? | | ?????????????????????????????????????????????????? | +----------------------------------------------------+ Best States ------------- Heat Dissipation 28 Energy Generation 10 Energy Capacity 250 Matter Stores 450 Matter Capacity 450 Sight Range 16 Terrain Scan Density 10 Evasion (%) 55 Recoil Reduction 3 Item Schematics ----------------- None Robot Schematics ------------------ None Fabricated ------------ Nothing Alien Tech Used ----------------- None Achievements -------------- Unlikely Earthworm Challenges ------------ None Game ------ Seed PowerLayeredCompressor Manual? 0 Play Time 00:29:31 Cumulative 14.0 hours Start 2024.12.26 @ 19:03:12 End 2024.12.26 @ 20:29:02 Sessions 3 Manual Loads 0 Difficulty Rogue Special Mode None Game No. 15 Rogue 15 Adventurer 0 Explorer 0 Win Type - Total 0 Types 0/0/0/0/0/0/0/0/0 Lore% 5 Gallery% 20 Achievement% 19 Wizard Run 0 Options --------- Layout 1 ASCII 0 Keyboard 0 Movement Arrows Keybinds 0 Fullscreen 1 Font 24/Smallcaps Map View 50x35 Zoom Use 0% Tactical HUD 1 Map Filters NONE Filters NONE Steam 1 RUN: 59128e07-3a49-4da7-b160-e1d0fa1cafad